[Event "*** SCC Grand Prix: Titled Tuesday Blitz"]
[Site "Chess.com"]
[Date "2020.07.07"]
[Round "7"]
[White "PSvidler"]
[Black "XDPS"]
[Result "1/2-1/2"]
[WhiteElo "2983"]
[BlackElo "2728"]
[TimeControl "180+1"]
[EndTime "11:18:00 PDT"]
[Termination "Game drawn by repetition"]

1. e4 {[%clk 0:03:00.9]} 1... e5 {[%clk 0:02:58.3]} 2. Nf3 {[%clk 0:03:00.6]}
2... Nc6 {[%clk 0:02:58.9]} 3. Bb5 {[%clk 0:03:01.1]} 3... a6 {[%clk 0:02:59]}
4. Ba4 {[%clk 0:03:01.7]} 4... d6 {[%clk 0:02:59.6]} 5. c3 {[%clk 0:03:01.2]}
5... Bd7 {[%clk 0:03:00]} 6. d4 {[%clk 0:03:00.1]} 6... g6 {[%clk 0:03:00.6]} 7.
O-O {[%clk 0:02:59.8]} 7... Bg7 {[%clk 0:03:00.8]} 8. dxe5 {[%clk 0:02:59.6]}
8... Nxe5 {[%clk 0:02:50.1]} 9. Nxe5 {[%clk 0:02:59.4]} 9... dxe5 {[%clk
0:02:51]} 10. f4 {[%clk 0:02:59.5]} 10... Bb5 {[%clk 0:01:41.4]} 11. Bxb5+
{[%clk 0:02:15.5]} 11... axb5 {[%clk 0:01:40]} 12. Qb3 {[%clk 0:02:09]} 12... c6
{[%clk 0:01:05.7]} 13. fxe5 {[%clk 0:02:07.5]} 13... Qe7 {[%clk 0:00:56.6]} 14.
Nd2 {[%clk 0:01:52.1]} 14... Nh6 {[%clk 0:00:48.5]} 15. Nf3 {[%clk 0:01:47.3]}
15... Ng4 {[%clk 0:00:45.4]} 16. Bg5 {[%clk 0:01:22.9]} 16... Qc5+ {[%clk
0:00:44.2]} 17. Kh1 {[%clk 0:01:23.1]} 17... O-O {[%clk 0:00:40.3]} 18. e6
{[%clk 0:01:22.2]} 18... Nf2+ {[%clk 0:00:35.1]} 19. Rxf2 {[%clk 0:01:22.3]}
19... Qxf2 {[%clk 0:00:36]} 20. Be7 {[%clk 0:01:22.3]} 20... fxe6 {[%clk
0:00:23.4]} 21. Bxf8 {[%clk 0:01:05.7]} 21... Rxf8 {[%clk 0:00:22.6]} 22. Rg1
{[%clk 0:00:58.1]} 22... Rxf3 {[%clk 0:00:12.7]} 23. gxf3 {[%clk 0:00:57.9]}
23... Qxf3+ {[%clk 0:00:13.6]} 24. Rg2 {[%clk 0:00:58.6]} 24... Qf1+ {[%clk
0:00:14.1]} 25. Rg1 {[%clk 0:00:59.1]} 25... Qf3+ {[%clk 0:00:15]} 26. Rg2
{[%clk 0:00:59.3]} 26... Qf1+ {[%clk 0:00:15.7]} 27. Rg1 {[%clk 0:01:00.2]}
27... Qf3+ {[%clk 0:00:16.2]} 1/2-1/2

[Event "*** SCC Grand Prix: Titled Tuesday Blitz"]
[Site "Chess.com"]
[Date "2020.07.07"]
[Round "7"]
[White "gagtemp"]
[Black "Tekushka"]
[Result "0-1"]
[WhiteElo "1909"]
[BlackElo "2364"]
[TimeControl "180+1"]
[EndTime "11:18:00 PDT"]
[Termination "Tekushka won by resignation"]

1. e4 {[%clk 0:03:00.9]} 1... c5 {[%clk 0:02:59.2]} 2. Nf3 {[%clk 0:03:00.5]}
2... Nc6 {[%clk 0:02:59.2]} 3. d4 {[%clk 0:03:00.9]} 3... cxd4 {[%clk
0:02:59.5]} 4. Nxd4 {[%clk 0:03:01.8]} 4... e6 {[%clk 0:02:59.9]} 5. Nc3 {[%clk
0:03:00.9]} 5... d6 {[%clk 0:03:00.2]} 6. Be3 {[%clk 0:03:00.1]} 6... Nf6 {[%clk
0:03:00]} 7. Be2 {[%clk 0:02:58.8]} 7... Be7 {[%clk 0:02:59.2]} 8. O-O {[%clk
0:02:58.3]} 8... O-O {[%clk 0:02:59.3]} 9. Kh1 {[%clk 0:02:58.7]} 9... Bd7
{[%clk 0:02:58.1]} 10. f4 {[%clk 0:02:58.1]} 10... Nxd4 {[%clk 0:02:56.7]} 11.
Bxd4 {[%clk 0:02:57.9]} 11... Bc6 {[%clk 0:02:57]} 12. e5 {[%clk 0:02:53.5]}
12... dxe5 {[%clk 0:02:53.6]} 13. fxe5 {[%clk 0:02:52.6]} 13... Nd7 {[%clk
0:02:49.5]} 14. Bd3 {[%clk 0:02:43.7]} 14... Bc5 {[%clk 0:02:46.3]} 15. Bxc5
{[%clk 0:02:39.9]} 15... Nxc5 {[%clk 0:02:46.3]} 16. Qe2 {[%clk 0:02:22.1]}
16... Qg5 {[%clk 0:02:33.8]} 17. Rad1 {[%clk 0:02:14.5]} 17... Rad8 {[%clk
0:02:28.4]} 18. Rf2 {[%clk 0:01:44.4]} 18... Rd7 {[%clk 0:02:14.1]} 19. Rdf1
{[%clk 0:01:43.6]} 19... Rfd8 {[%clk 0:02:05.2]} 20. Ne4 {[%clk 0:01:11.9]}
20... Qxe5 {[%clk 0:01:36.3]} 21. Nxc5 {[%clk 0:01:10.9]} 21... Qxc5 {[%clk
0:01:35.8]} 22. Qg4 {[%clk 0:00:59.7]} 22... g6 {[%clk 0:01:26.7]} 23. h4 {[%clk
0:00:46.7]} 23... Rd4 {[%clk 0:01:21.7]} 24. Qg3 {[%clk 0:00:36.6]} 24... Qh5
{[%clk 0:01:17.8]} 25. Rxf7 {[%clk 0:00:26.7]} 25... Rxh4+ {[%clk 0:01:13.1]}
26. Kg1 {[%clk 0:00:26.8]} 26... Rh1+ {[%clk 0:01:11.5]} 27. Kf2 {[%clk
0:00:26.4]} 27... Rxf1+ {[%clk 0:01:09.6]} 28. Kxf1 {[%clk 0:00:25.7]} 28...
Kxf7 {[%clk 0:01:09.3]} 29. Qc7+ {[%clk 0:00:25.8]} 29... Rd7 {[%clk 0:01:08.3]}
30. Qf4+ {[%clk 0:00:25.7]} 30... Kg7 {[%clk 0:01:06.9]} 0-1

[Event "*** SCC Grand Prix: Titled Tuesday Blitz"]
[Site "Chess.com"]
[Date "2020.07.07"]
[Round "7"]
[White "GGfrances"]
[Black "Vesper2018"]
[Result "1-0"]
[WhiteElo "2359"]
[BlackElo "2545"]
[TimeControl "180+1"]
[EndTime "11:18:03 PDT"]
[Termination "GGfrances won by resignation"]

1. e4 {[%clk 0:02:47.7]} 1... c5 {[%clk 0:02:59.5]} 2. Nf3 {[%clk 0:02:46.7]}
2... d6 {[%clk 0:02:58]} 3. d4 {[%clk 0:02:46.9]} 3... cxd4 {[%clk 0:02:58.1]}
4. Nxd4 {[%clk 0:02:47.8]} 4... Nf6 {[%clk 0:02:58.4]} 5. Nc3 {[%clk 0:02:47.2]}
5... a6 {[%clk 0:02:58.7]} 6. Bg5 {[%clk 0:02:47.2]} 6... Nbd7 {[%clk
0:02:58.2]} 7. f4 {[%clk 0:02:40.2]} 7... Qc7 {[%clk 0:02:57.3]} 8. Qf3 {[%clk
0:02:34.8]} 8... h6 {[%clk 0:02:54.8]} 9. Bh4 {[%clk 0:02:30.9]} 9... g5 {[%clk
0:02:53.3]} 10. fxg5 {[%clk 0:02:29.3]} 10... hxg5 {[%clk 0:02:53.6]} 11. Bxg5
{[%clk 0:02:26.7]} 11... Qc5 {[%clk 0:02:53.5]} 12. Be3 {[%clk 0:02:24.7]} 12...
Ne5 {[%clk 0:02:53.1]} 13. Qe2 {[%clk 0:02:23]} 13... Neg4 {[%clk 0:02:15.9]}
14. Nf5 {[%clk 0:02:14.3]} 14... Qb4 {[%clk 0:02:00.9]} 15. Rb1 {[%clk
0:02:07.8]} 15... Bxf5 {[%clk 0:01:29.7]} 16. exf5 {[%clk 0:02:03.6]} 16... Nxe3
{[%clk 0:01:23.3]} 17. Qxe3 {[%clk 0:02:02.3]} 17... Bh6 {[%clk 0:01:23.5]} 18.
Qf3 {[%clk 0:01:54.1]} 18... Rc8 {[%clk 0:01:17.4]} 19. a3 {[%clk 0:01:48]}
19... Qa5 {[%clk 0:01:00.2]} 20. Bd3 {[%clk 0:01:44.9]} 20... Qe5+ {[%clk
0:00:33.5]} 21. Qe2 {[%clk 0:01:40.8]} 21... Qd4 {[%clk 0:00:33.4]} 22. Qf3
{[%clk 0:01:31.6]} 22... Be3 {[%clk 0:00:22.2]} 23. Qxb7 {[%clk 0:01:27.7]}
23... Rxc3 {[%clk 0:00:15.8]} 24. bxc3 {[%clk 0:01:24.3]} 24... Qxc3+ {[%clk
0:00:15.9]} 25. Kf1 {[%clk 0:01:23.5]} 25... Kf8 {[%clk 0:00:14.2]} 26. Qf3
{[%clk 0:01:20.5]} 26... Bc5 {[%clk 0:00:13.5]} 27. Bxa6 {[%clk 0:01:17.5]}
27... Rh4 {[%clk 0:00:09.2]} 28. Rb8+ {[%clk 0:01:13.7]} 28... Kg7 {[%clk
0:00:08.5]} 29. Qxc3 {[%clk 0:01:12.9]} 1-0

[Event "*** SCC Grand Prix: Titled Tuesday Blitz"]
[Site "Chess.com"]
[Date "2020.07.07"]
[Round "7"]
[White "grandcoach"]
[Black "fabianvivasz"]
[Result "1-0"]
[WhiteElo "2119"]
[BlackElo "2235"]
[TimeControl "180+1"]
[EndTime "11:18:04 PDT"]
[Termination "grandcoach won on time"]

1. e4 {[%clk 0:03:00.9]} 1... e5 {[%clk 0:02:58.8]} 2. Nf3 {[%clk 0:03:00.2]}
2... Nc6 {[%clk 0:02:59]} 3. d4 {[%clk 0:03:00.7]} 3... exd4 {[%clk 0:02:58.3]}
4. c3 {[%clk 0:03:01]} 4... d5 {[%clk 0:02:52.6]} 5. exd5 {[%clk 0:03:00.8]}
5... Qxd5 {[%clk 0:02:49.4]} 6. cxd4 {[%clk 0:03:01.2]} 6... Bg4 {[%clk
0:02:45.1]} 7. Be2 {[%clk 0:02:58.8]} 7... Bb4+ {[%clk 0:02:43.7]} 8. Nc3 {[%clk
0:02:58.3]} 8... Bxf3 {[%clk 0:02:40.2]} 9. Bxf3 {[%clk 0:02:57.7]} 9... Qc4
{[%clk 0:02:40.7]} 10. Qb3 {[%clk 0:02:55]} 10... Qxb3 {[%clk 0:02:36.2]} 11.
axb3 {[%clk 0:02:55.6]} 11... Nxd4 {[%clk 0:02:35.7]} 12. Bxb7 {[%clk
0:02:52.8]} 12... Nc2+ {[%clk 0:02:18.2]} 13. Ke2 {[%clk 0:02:52.6]} 13... Nxa1
{[%clk 0:02:12.9]} 14. Bc6+ {[%clk 0:02:52.8]} 14... Kf8 {[%clk 0:02:03.6]} 15.
Bxa8 {[%clk 0:02:53.7]} 15... Nxb3 {[%clk 0:01:57.7]} 16. Be3 {[%clk 0:02:53.4]}
16... Nf6 {[%clk 0:01:46.2]} 17. Rd1 {[%clk 0:02:40.4]} 17... Ke7 {[%clk
0:01:34.3]} 18. Bc6 {[%clk 0:02:31.3]} 18... a5 {[%clk 0:01:07.1]} 19. Nd5+
{[%clk 0:01:54.8]} 19... Nxd5 {[%clk 0:00:47.1]} 20. Rxd5 {[%clk 0:01:50.4]}
20... Rd8 {[%clk 0:00:13.1]} 21. Rh5 {[%clk 0:01:45.7]} 21... h6 {[%clk
0:00:08.3]} 22. Ba4 {[%clk 0:01:32.1]} 22... Nd4+ {[%clk 0:00:05.2]} 23. Bxd4
{[%clk 0:01:26.5]} 23... Rxd4 {[%clk 0:00:05.3]} 24. Re5+ {[%clk 0:01:14.7]} 1-0

[Event "*** SCC Grand Prix: Titled Tuesday Blitz"]
[Site "Chess.com"]
[Date "2020.07.07"]
[Round "7"]
[White "FMJoseHerrera"]
[Black "stolencandy13"]
[Result "1-0"]
[WhiteElo "2495"]
[BlackElo "2366"]
[TimeControl "180+1"]
[EndTime "11:18:06 PDT"]
[Termination "FMJoseHerrera won by resignation"]

1. Nf3 {[%clk 0:02:58.7]} 1... f5 {[%clk 0:02:51.5]} 2. g3 {[%clk 0:02:59.6]}
2... Nf6 {[%clk 0:02:50.7]} 3. d3 {[%clk 0:03:00.5]} 3... e6 {[%clk 0:02:51.4]}
4. Nc3 {[%clk 0:03:00.8]} 4... Be7 {[%clk 0:02:51.7]} 5. e4 {[%clk 0:03:00.7]}
5... O-O {[%clk 0:02:52.6]} 6. exf5 {[%clk 0:03:00.5]} 6... exf5 {[%clk
0:02:52.7]} 7. Bg2 {[%clk 0:03:00.5]} 7... d6 {[%clk 0:02:50.5]} 8. O-O {[%clk
0:03:00]} 8... Kh8 {[%clk 0:02:50.7]} 9. Re1 {[%clk 0:02:58.6]} 9... Nc6 {[%clk
0:02:49]} 10. d4 {[%clk 0:02:56.5]} 10... a5 {[%clk 0:02:41.4]} 11. d5 {[%clk
0:02:55.8]} 11... Nb8 {[%clk 0:02:39]} 12. Nd4 {[%clk 0:02:50]} 12... Na6 {[%clk
0:02:31.4]} 13. Nce2 {[%clk 0:02:42.7]} 13... Nc5 {[%clk 0:02:30]} 14. Nf4
{[%clk 0:02:42]} 14... Nfe4 {[%clk 0:02:20.6]} 15. c3 {[%clk 0:02:39.5]} 15...
Bf6 {[%clk 0:02:11.9]} 16. Qh5 {[%clk 0:02:34.6]} 16... Qe8 {[%clk 0:02:07.6]}
17. Qxe8 {[%clk 0:02:29]} 17... Rxe8 {[%clk 0:02:08.5]} 18. f3 {[%clk
0:02:29.3]} 18... g5 {[%clk 0:01:49.5]} 19. Nh5 {[%clk 0:01:53]} 19... Nd3
{[%clk 0:01:43.1]} 20. fxe4 {[%clk 0:01:51.1]} 20... Bxd4+ {[%clk 0:01:40.6]}
21. Be3 {[%clk 0:01:39.4]} 21... Bxe3+ {[%clk 0:01:32.2]} 22. Rxe3 {[%clk
0:01:40.3]} 22... Nxb2 {[%clk 0:01:23.7]} 23. Bf1 {[%clk 0:01:17.9]} 23... Bd7
{[%clk 0:01:17.5]} 24. Nf6 {[%clk 0:01:16]} 24... Re7 {[%clk 0:01:14.2]} 25.
Nxd7 {[%clk 0:01:16.3]} 25... Rxd7 {[%clk 0:01:14.4]} 26. Rb1 {[%clk 0:01:16.9]}
26... f4 {[%clk 0:01:05.4]} 27. Ree1 {[%clk 0:01:09.5]} 27... Na4 {[%clk
0:00:51.7]} 28. Bb5 {[%clk 0:01:09.4]} 28... Nxc3 {[%clk 0:00:49.9]} 29. Bxd7
{[%clk 0:01:09.2]} 29... Nxb1 {[%clk 0:00:49.6]} 30. Rxb1 {[%clk 0:01:10.1]}
30... b6 {[%clk 0:00:49.9]} 31. Rc1 {[%clk 0:01:09]} 31... Ra7 {[%clk
0:00:47.7]} 32. a4 {[%clk 0:01:07.4]} 32... Kg7 {[%clk 0:00:47.1]} 33. Kf2
{[%clk 0:01:07]} 33... Kf6 {[%clk 0:00:46.5]} 34. Kf3 {[%clk 0:01:07.4]} 34...
fxg3 {[%clk 0:00:43.3]} 35. hxg3 {[%clk 0:01:06.4]} 35... Ke7 {[%clk 0:00:43.8]}
36. Bc6 {[%clk 0:01:05.8]} 36... Kf6 {[%clk 0:00:43.2]} 37. Kg4 {[%clk
0:01:04.7]} 37... Kg6 {[%clk 0:00:42.5]} 38. Be8+ {[%clk 0:01:01.8]} 38... Kg7
{[%clk 0:00:39.7]} 39. Kxg5 {[%clk 0:01:00.4]} 39... h6+ {[%clk 0:00:36.7]} 40.
Kf5 {[%clk 0:01:00.4]} 1-0

[Event "*** SCC Grand Prix: Titled Tuesday Blitz"]
[Site "Chess.com"]
[Date "2020.07.07"]
[Round "7"]
[White "Roman_Ovetchkin"]
[Black "colegiodemadrid"]
[Result "1-0"]
[WhiteElo "2568"]
[BlackElo "2411"]
[TimeControl "180+1"]
[EndTime "11:18:11 PDT"]
[Termination "Roman_Ovetchkin won by resignation"]

1. d4 {[%clk 0:03:00.9]} 1... Nf6 {[%clk 0:02:55.3]} 2. c4 {[%clk 0:03:00.7]}
2... g6 {[%clk 0:02:54.6]} 3. Nc3 {[%clk 0:03:01.1]} 3... Bg7 {[%clk 0:02:54.5]}
4. e4 {[%clk 0:03:01.2]} 4... d6 {[%clk 0:02:55.2]} 5. Nf3 {[%clk 0:02:59]} 5...
Bg4 {[%clk 0:02:54.3]} 6. Be2 {[%clk 0:02:58.3]} 6... O-O {[%clk 0:02:53.2]} 7.
Be3 {[%clk 0:02:58.6]} 7... Nfd7 {[%clk 0:02:52.4]} 8. Rc1 {[%clk 0:02:58.3]}
8... e5 {[%clk 0:02:48.2]} 9. d5 {[%clk 0:02:55.7]} 9... a5 {[%clk 0:02:48.6]}
10. h3 {[%clk 0:02:53.7]} 10... Bxf3 {[%clk 0:02:47.9]} 11. Bxf3 {[%clk
0:02:54.6]} 11... Na6 {[%clk 0:02:47.6]} 12. h4 {[%clk 0:02:47.4]} 12... f5
{[%clk 0:02:46.1]} 13. h5 {[%clk 0:02:46]} 13... Nac5 {[%clk 0:02:26.9]} 14.
hxg6 {[%clk 0:02:35.6]} 14... hxg6 {[%clk 0:02:27.8]} 15. exf5 {[%clk
0:02:30.9]} 15... gxf5 {[%clk 0:02:27]} 16. g3 {[%clk 0:02:15.8]} 16... Qf6
{[%clk 0:02:19.8]} 17. Rc2 {[%clk 0:01:41.8]} 17... a4 {[%clk 0:02:07]} 18. Nb5
{[%clk 0:01:20.9]} 18... Rac8 {[%clk 0:01:39.2]} 19. Kf1 {[%clk 0:01:18.9]}
19... Rfe8 {[%clk 0:00:50.7]} 20. Rh5 {[%clk 0:01:04]} 20... e4 {[%clk
0:00:47.2]} 21. Be2 {[%clk 0:01:01.9]} 21... Ne5 {[%clk 0:00:33.6]} 22. Nd4
{[%clk 0:01:00.1]} 22... f4 {[%clk 0:00:25.5]} 23. gxf4 {[%clk 0:00:58.2]} 23...
Ned3 {[%clk 0:00:24.1]} 24. Bg4 {[%clk 0:00:57.7]} 24... Rcd8 {[%clk 0:00:21.7]}
25. Bf5 {[%clk 0:00:53.8]} 25... Rf8 {[%clk 0:00:18.1]} 26. Qg4 {[%clk
0:00:52.3]} 26... Qf7 {[%clk 0:00:18]} 27. Bh7+ {[%clk 0:00:51.2]} 27... Kh8
{[%clk 0:00:17.5]} 28. Bg6+ {[%clk 0:00:51.7]} 1-0

[Event "*** SCC Grand Prix: Titled Tuesday Blitz"]
[Site "Chess.com"]
[Date "2020.07.07"]
[Round "7"]
[White "YPradafah"]
[Black "krzyzan94"]
[Result "0-1"]
[WhiteElo "2509"]
[BlackElo "2669"]
[TimeControl "180+1"]
[EndTime "11:18:12 PDT"]
[Termination "krzyzan94 won by resignation"]

1. d4 {[%clk 0:03:00.9]} 1... Nf6 {[%clk 0:02:58]} 2. Nf3 {[%clk 0:03:01.1]}
2... e6 {[%clk 0:02:56.2]} 3. Be3 {[%clk 0:03:01.6]} 3... b6 {[%clk 0:02:52.4]}
4. h3 {[%clk 0:02:53.5]} 4... Bb7 {[%clk 0:02:53.3]} 5. Nbd2 {[%clk 0:02:54]}
5... c5 {[%clk 0:02:50.9]} 6. c3 {[%clk 0:02:53]} 6... Nc6 {[%clk 0:02:49.5]} 7.
dxc5 {[%clk 0:02:49.8]} 7... bxc5 {[%clk 0:02:50.4]} 8. g3 {[%clk 0:02:46.2]}
8... Nd5 {[%clk 0:02:48]} 9. Bf4 {[%clk 0:02:38]} 9... Nxf4 {[%clk 0:02:46]} 10.
gxf4 {[%clk 0:02:38.9]} 10... d5 {[%clk 0:02:46]} 11. Bg2 {[%clk 0:02:37.1]}
11... Bd6 {[%clk 0:02:45.1]} 12. e3 {[%clk 0:02:37.3]} 12... O-O {[%clk
0:02:45]} 13. O-O {[%clk 0:02:37.1]} 13... Ba6 {[%clk 0:02:44]} 14. Re1 {[%clk
0:02:37.2]} 14... Rb8 {[%clk 0:02:42.8]} 15. b3 {[%clk 0:02:34.1]} 15... Be7
{[%clk 0:02:39.4]} 16. Rc1 {[%clk 0:02:24.5]} 16... Bf6 {[%clk 0:02:38.6]} 17.
Qc2 {[%clk 0:02:25]} 17... Qa5 {[%clk 0:02:36.3]} 18. e4 {[%clk 0:02:21.3]}
18... Rfd8 {[%clk 0:02:29.8]} 19. e5 {[%clk 0:02:20]} 19... Be7 {[%clk
0:02:29.1]} 20. f5 {[%clk 0:02:15.7]} 20... exf5 {[%clk 0:02:24.1]} 21. Qxf5
{[%clk 0:02:16.6]} 21... Bc8 {[%clk 0:02:21.7]} 22. Qc2 {[%clk 0:02:08.8]} 22...
Be6 {[%clk 0:02:19.4]} 23. Nf1 {[%clk 0:02:06.6]} 23... d4 {[%clk 0:02:14.9]}
24. Ng3 {[%clk 0:00:57.3]} 24... dxc3 {[%clk 0:02:00.6]} 25. Qxc3 {[%clk
0:00:56.4]} 25... Qxc3 {[%clk 0:01:59.5]} 26. Rxc3 {[%clk 0:00:57.3]} 26... c4
{[%clk 0:01:59.3]} 27. bxc4 {[%clk 0:00:45.2]} 27... Bb4 {[%clk 0:01:57.5]} 28.
Rec1 {[%clk 0:00:44.1]} 28... Bxc3 {[%clk 0:01:57.3]} 29. Rxc3 {[%clk 0:00:45]}
29... Rb1+ {[%clk 0:01:54.7]} 30. Kh2 {[%clk 0:00:45.5]} 30... Rb2 {[%clk
0:01:53.1]} 31. Ne4 {[%clk 0:00:41.7]} 31... Rxa2 {[%clk 0:01:51.1]} 32. Kg3
{[%clk 0:00:41]} 32... h5 {[%clk 0:01:46.1]} 33. Nd6 {[%clk 0:00:27.2]} 33...
Nxe5 {[%clk 0:01:44.8]} 34. Nxe5 {[%clk 0:00:25.6]} 34... Rxd6 {[%clk
0:01:43.9]} 35. c5 {[%clk 0:00:26.3]} 35... Rd8 {[%clk 0:01:38.6]} 36. Nc6
{[%clk 0:00:26.3]} 36... Rdd2 {[%clk 0:01:35.6]} 37. Nb4 {[%clk 0:00:21.8]}
37... Rab2 {[%clk 0:01:32]} 38. Nd3 {[%clk 0:00:17.9]} 38... Rb3 {[%clk
0:01:31.1]} 39. Rxb3 {[%clk 0:00:18.5]} 39... Bxb3 {[%clk 0:01:31.8]} 40. Ne5
{[%clk 0:00:13.8]} 40... Bd5 {[%clk 0:01:30.4]} 0-1

[Event "*** SCC Grand Prix: Titled Tuesday Blitz"]
[Site "Chess.com"]
[Date "2020.07.07"]
[Round "7"]
[White "cukin84"]
[Black "Trickov"]
[Result "0-1"]
[WhiteElo "2179"]
[BlackElo "2330"]
[TimeControl "180+1"]
[EndTime "11:18:13 PDT"]
[Termination "Trickov won by resignation"]

1. e4 {[%clk 0:03:00.9]} 1... c5 {[%clk 0:02:57.6]} 2. Nc3 {[%clk 0:03:00.4]}
2... Nc6 {[%clk 0:02:49.6]} 3. Bb5 {[%clk 0:02:59.4]} 3... Nd4 {[%clk 0:02:46]}
4. Bc4 {[%clk 0:02:58.7]} 4... e6 {[%clk 0:02:44.5]} 5. Nf3 {[%clk 0:02:58.2]}
5... a6 {[%clk 0:02:42.2]} 6. Nxd4 {[%clk 0:02:52.8]} 6... cxd4 {[%clk
0:02:41.4]} 7. Ne2 {[%clk 0:02:52.9]} 7... b5 {[%clk 0:02:41.1]} 8. Bb3 {[%clk
0:02:52.6]} 8... Qb6 {[%clk 0:02:40.9]} 9. O-O {[%clk 0:02:51.2]} 9... Bb7
{[%clk 0:02:40.3]} 10. d3 {[%clk 0:02:50.6]} 10... Ne7 {[%clk 0:02:36.7]} 11. c3
{[%clk 0:02:49.3]} 11... dxc3 {[%clk 0:02:34.6]} 12. bxc3 {[%clk 0:02:48.8]}
12... d5 {[%clk 0:02:34.4]} 13. e5 {[%clk 0:02:39.5]} 13... Nc6 {[%clk
0:02:30.3]} 14. Be3 {[%clk 0:02:25]} 14... Qc7 {[%clk 0:02:29.5]} 15. f4 {[%clk
0:02:24.3]} 15... Na5 {[%clk 0:02:26.9]} 16. Kh1 {[%clk 0:02:17]} 16... Nxb3
{[%clk 0:02:17.7]} 17. axb3 {[%clk 0:02:16.1]} 17... Be7 {[%clk 0:02:17.7]} 18.
Bd4 {[%clk 0:02:11.4]} 18... g6 {[%clk 0:02:15.3]} 19. Qe1 {[%clk 0:01:59.2]}
19... h5 {[%clk 0:02:01.6]} 20. Qg3 {[%clk 0:01:48.9]} 20... b4 {[%clk
0:01:57.6]} 21. cxb4 {[%clk 0:01:36.1]} 21... Bc6 {[%clk 0:01:49.1]} 22. Rfc1
{[%clk 0:01:29.8]} 22... Bxb4 {[%clk 0:01:44.8]} 23. f5 {[%clk 0:01:15.1]} 23...
gxf5 {[%clk 0:01:39.7]} 24. Qg7 {[%clk 0:01:14.6]} 24... Rf8 {[%clk 0:01:38.1]}
25. Nf4 {[%clk 0:01:11.3]} 25... Qb7 {[%clk 0:01:29.9]} 26. Nxh5 {[%clk
0:01:03.5]} 26... O-O-O {[%clk 0:01:20.3]} 27. Be3 {[%clk 0:00:45.5]} 27... d4
{[%clk 0:01:15.3]} 28. Rxc6+ {[%clk 0:00:41.9]} 28... Kb8 {[%clk 0:00:59.4]} 29.
Rcxa6 {[%clk 0:00:40.4]} 29... dxe3 {[%clk 0:00:57.6]} 30. Ra8+ {[%clk
0:00:37.8]} 30... Qxa8 {[%clk 0:00:56.1]} 31. Rxa8+ {[%clk 0:00:36.5]} 31...
Kxa8 {[%clk 0:00:56.4]} 32. Nf6 {[%clk 0:00:36.6]} 32... e2 {[%clk 0:00:53.9]}
0-1

[Event "*** SCC Grand Prix: Titled Tuesday Blitz"]
[Site "Chess.com"]
[Date "2020.07.07"]
[Round "7"]
[White "Volodar_Murzin"]
[Black "ShimanovAlex"]
[Result "0-1"]
[WhiteElo "2684"]
[BlackElo "2884"]
[TimeControl "180+1"]
[EndTime "11:18:14 PDT"]
[Termination "ShimanovAlex won on time"]

1. e4 {[%clk 0:03:00.9]} 1... d5 {[%clk 0:02:58.8]} 2. exd5 {[%clk 0:03:00.5]}
2... Qxd5 {[%clk 0:02:59.7]} 3. Nc3 {[%clk 0:03:00]} 3... Qd6 {[%clk 0:02:59.5]}
4. d4 {[%clk 0:02:59.5]} 4... Nf6 {[%clk 0:02:59.8]} 5. Nf3 {[%clk 0:02:59.1]}
5... Nc6 {[%clk 0:03:00.3]} 6. g3 {[%clk 0:02:54.2]} 6... Bg4 {[%clk 0:02:58.9]}
7. Bg2 {[%clk 0:02:51.7]} 7... O-O-O {[%clk 0:02:57.3]} 8. h3 {[%clk 0:02:41.2]}
8... Bh5 {[%clk 0:02:55.7]} 9. Be3 {[%clk 0:02:25]} 9... e5 {[%clk 0:02:50.1]}
10. dxe5 {[%clk 0:02:02]} 10... Nxe5 {[%clk 0:02:49.7]} 11. Qxd6 {[%clk
0:01:59.7]} 11... Bxd6 {[%clk 0:02:50.6]} 12. Nxe5 {[%clk 0:01:14.5]} 12... Bxe5
{[%clk 0:02:49.9]} 13. O-O {[%clk 0:01:14.8]} 13... Rhe8 {[%clk 0:02:46.1]} 14.
Rfe1 {[%clk 0:00:57.1]} 14... Bg6 {[%clk 0:02:42]} 15. Rac1 {[%clk 0:00:55]}
15... a6 {[%clk 0:02:29.9]} 16. Bf3 {[%clk 0:00:42.7]} 16... Bxc3 {[%clk
0:02:23.6]} 17. bxc3 {[%clk 0:00:40.1]} 17... Be4 {[%clk 0:02:24.5]} 18. Be2
{[%clk 0:00:27.5]} 18... Nd5 {[%clk 0:02:21.5]} 19. Bd4 {[%clk 0:00:24.4]} 19...
f6 {[%clk 0:02:21]} 20. Bc4 {[%clk 0:00:20.2]} 20... Bf3 {[%clk 0:02:01.9]} 21.
Bb3 {[%clk 0:00:16.8]} 21... b6 {[%clk 0:01:58.9]} 22. c4 {[%clk 0:00:15.4]}
22... Nb4 {[%clk 0:01:49.1]} 23. Rxe8 {[%clk 0:00:14.4]} 23... Rxe8 {[%clk
0:01:48.5]} 24. c5 {[%clk 0:00:14.6]} 24... b5 {[%clk 0:01:47.9]} 25. c4 {[%clk
0:00:12.6]} 25... Nc6 {[%clk 0:01:47.5]} 26. Be3 {[%clk 0:00:11.9]} 26... b4
{[%clk 0:01:44.6]} 27. Ba4 {[%clk 0:00:11]} 27... Rd8 {[%clk 0:01:44.4]} 28. Kf1
{[%clk 0:00:09.4]} 28... Ne5 {[%clk 0:01:42.6]} 29. Bb3 {[%clk 0:00:07.4]} 29...
a5 {[%clk 0:01:40.1]} 30. Ra1 {[%clk 0:00:06.6]} 30... Bc6 {[%clk 0:01:38.1]}
31. Ke2 {[%clk 0:00:03.7]} 31... a4 {[%clk 0:01:37]} 32. Bc2 {[%clk 0:00:04.2]}
32... Nxc4 {[%clk 0:01:36.9]} 33. Bxh7 {[%clk 0:00:03.6]} 33... Ne5 {[%clk
0:01:36.7]} 34. Bf5+ {[%clk 0:00:01.7]} 34... Kb7 {[%clk 0:01:34.2]} 35. f4
{[%clk 0:00:01.3]} 35... Bb5+ {[%clk 0:01:29.8]} 36. Kf2 {[%clk 0:00:01.2]}
36... Nd3+ {[%clk 0:01:28.4]} 0-1